Cogmind - Beta 17.1 @@@ ROGUE MODE // 2026.09.02 @ 18:11:04 Player: 7H-NLC Result: Destroyed by R1-LP1(R) with Subdweller Beam Cannon Performance ------------- Evolutions (0) 0 Regions Visited (2) 400 Robots Destroyed (20) 100 Value Destroyed (379) 379 Prototype IDs (0) 0 Alien Tech Used (0) 0 Bonus (0) 0 TOTAL SCORE: 879 Bonus ------- None Cogmind --------- Core Integrity 0/250 Matter 212/300 Energy 100/100 System Corruption 0% Temperature Cool (9) Movement Core (100) Ox1 Location -10/Subcaves Parts ------- > --- POWER (1) -------- (None) > --- PROPULSION (2) --- (None) > --- UTILITY (2) ------ (None) > --- WEAPON (2) ------- Subdweller Machine Gun > --- INVENTORY (5) ---- Small Storage Unit High-capacity Matter Pod (0) Peak State ------------ > --- POWER ------------ Light Nuclear Core > --- PROPULSION ------- Light Treads Light Treads > --- UTILITY ---------- High-capacity Storage Unit Improved Terrain Scanner > --- WEAPON ----------- Assault Rifle Assault Rifle > --- INVENTORY -------- Ion Engine Wheel Compact Wheel Compact Wheel Improved Heat Sink Small Storage Unit Huge Storage Unit Huge Storage Unit Medium Matter Pod High-capacity Matter Pod High-capacity Matter Pod Seismic Detector Tractor Beam Light Assault Rifle Light Assault Rifle Grenade Launcher Mining Laser [Rating: 12] Favorites ----------- Power Light Nuclear Core Engine Ion Engine Power Core Light Nuclear Core Propulsion Light Treads Treads Light Treads Wheel Compact Wheel Utility High-capacity Storage Unit Device Seismic Detector Storage High-capacity Storage Unit Protection Scrap Shield Weapon Assault Rifle Ballistic Gun Assault Rifle Special Weapon Mining Laser Build | -11 -10 -10 ------- Run | Yrd Mat Sub Slots Evolved . | . . . Power . | . . . Propulsion . | . . . Utility . | . . . Weapon . | . . . Parts Attached 16 | 7 4 5 Power 2 | 1 1 . Engine 1 | 1 . . Core 1 | . 1 . Reactor . | . . . Propulsion 4 | 2 2 . Treads 2 | . 2 . Leg . | . . . Wheel 2 | 2 . . Hover . | . . . Flight . | . . . Utility 5 | 2 1 2 Device 2 | 1 . 1 Storage 2 | 1 1 . Processor . | . . . Hackware . | . . . Protection 1 | . . 1 Artifact . | . . . Weapon 5 | 2 . 3 Energy Gun . | . . . Energy Cannon . | . . . Ballistic Gun 4 | 2 . 2 Ballistic Cannon . | . . . Launcher . | . . . Special Weapon 1 | . . 1 Impact Weapon . | . . . Slashing Weapon . | . . . Piercing Weapon . | . . . Special Melee Weapon . | . . . Unidentified Prototypes . | . . . Parts Lost 8 | . . 8 Power 1 | . . 1 Propulsion 2 | . . 2 Utility 2 | . . 2 Weapon 3 | . . 3 Highest Loss Streak 8 | . . 8 To Critical Strikes . | . . . Average Backups 14 | 2 15 16 Power . | . . . Propulsion 2 | 1 2 2 Utility 7 | . 7 8 Weapon 3 | . 3 4 Tool/Special . | . . . Unused Backups 11 | . . 11 Power . | . . . Propulsion 1 | . . 1 Utility 7 | . . 7 Weapon 3 | . . 3 Tool/Special . | . . . Average Slot Usage (%) 98 | . 100 96 Engine 1 | . 2 . Core 12 | . 11 13 Treads 24 | . 23 26 Wheel 2 | . 4 . Device 13 | . 14 13 Storage 13 | . 14 13 Ballistic Gun 26 | . 28 24 Special Weapon 1 | . . 3 Peak Build Rating 12 | 7 11 12 Average Rating 10 | 5 10 10 On Entrance 6 | . 7 11 Avg Prop Armor Cover (%) . | . . . Naked Turns . | . . . Heaviest Build 50 | 15 50 50 Greatest Support 40 | 32 40 40 Greatest Overweight (x) 2 | 2 1 1 Average Overweight (x) . | . . . Largest Inventory Capacity 20 | 8 20 20 Average Capacity 18 | 7 19 19 Most Carried 20 | 6 17 20 Average Carried 15 | 2 15 17 Final Capacity 20 | 8 20 5 Final Carried 17 | 6 17 2 Class Distribution -------------------- 100% | Mutant Dominant Class ---------------- Mutant | -10/Materials Mutant | -10/Subcaves Resources | -11 -10 -10 ----------- Run | Yrd Mat Sub Matter Collected 874 | 352 374 148 Remotely . | . . . Salvage Created 604 | 127 306 171 Parts 51 | 16 22 13 Haulers Intercepted 1 | . 1 . Recyclers Shooed . | . . . Parts Field Recycled . | . . . Retrieved Matter . | . . . Parts Self-Destructed 2 | . . 2 Prevented . | . . . Parts Restored . | . . . Kills | -11 -10 -10 ------- Run | Yrd Mat Sub Combat Hostiles Destroyed 14 | . 10 4 Guns 14 | . 10 4 Classes Destroyed 7 | 3 3 1 Worker 2 | 2 . . Tunneler 2 | 2 . . Hauler 1 | . 1 . Recycler 1 | 1 . . Swarmer 7 | . 7 . Grunt 3 | . 3 . Subdweller 4 | . . 4 Best Kill Streak 6 | 3 6 2 Combat Bots Only 6 | . 6 2 Max Kills in Single Turn 1 | 1 1 1 Gunslinging . | . . . Exploded . | . . . Melee . | . . . Uniques/NPCs Destroyed . | . . . Combat | -11 -10 -10 -------- Run | Yrd Mat Sub Hostile Shots Fired 97 | . 44 53 Missed 25 | . 16 9 Hits 72 | . 28 44 Projectile 72 | . 28 44 Critical Strikes 1 | . . 1 Damage Taken 1179 | . 275 904 Core 269 | . 35 234 Absorbed by Shields . | . . . Core Remaining (%) 100 | 100 . . Volleys Fired 68 | 10 25 33 Largest 2 | 2 2 2 Hottest 100 | 40 40 100 Shots Fired 125 | 20 50 55 Gun 116 | 20 50 46 Cannon . | . . . Launcher . | . . . Special 9 | . . 9 Kinetic 116 | 20 50 46 Thermal 9 | . . 9 Explosive . | . . . Electromagnetic . | . . . Robot Hit Streak 9 | 5 5 9 Robot Miss Streak 3 | 2 3 1 Penetration Max . | . . . Secondary Targets 3 | . 3 . Max Gunslinging Chain 1 | . 1 . Shots Hit Robots 77 | 13 26 38 Core Hits 32 | 6 15 11 Critical Kills . | . . . Critical Parts Destroyed . | . . . Critical Strikes 1 | . . 1 Destroy 1 | . . 1 Melee Attacks . | . . . Impact . | . . . Slashing . | . . . Piercing . | . . . Sneak Attacks . | . . . Combat Hostiles . | . . . Follow-up Attacks . | . . . Damage Inflicted 995 | 160 338 497 Guns 995 | 160 338 497 Cannons . | . . . Explosions . | . . . Melee . | . . . Ramming . | . . . Kinetic 995 | 160 338 497 Thermal . | . . . Explosive . | . . . Electromagnetic . | . . . Impact . | . . . Slashing . | . . . Piercing . | . . . Highest Corruption . | . . . Average Corruption . | . . . Corruption Purged . | . . . Corruption Blocked . | . . . Overload Shots . | . . . Overflow Damage . | . . . Projectiles . | . . . Explosions . | . . . Melee . | . . . Knockbacks . | . . . Impact . | . . . Kinetic . | . . . Secondary . | . . . Self-Inflicted Damage . | . . . Shots . | . . . Rammed 2 | . 2 . Targets Rammed 2 | . 2 . Kicked . | . . . Crushed . | . . . Highest Temperature 6 | 6 2 . Average Temperature 2 | 6 2 . Received Heat Transfer 198 | . 63 135 Siege Activations . | . . . Martial Activations . | . . . Shielding Activations . | . . . Robots Disrupted . | . . . Combat Hostiles . | . . . Robots Corrupted . | . . . Combat Hostiles . | . . . Parts Fried . | . . . Impact Corruptions . | . . . Robots Melted . | . . . Combat Hostiles . | . . . Parts Melted . | . . . Heat Transferred . | . . . Parts Sabotaged . | . . . Parts Stolen . | . . . Parts Stripped . | . . . Power Chain Reactions . | . . . Alert | -11 -10 -10 ------- Run | Yrd Mat Sub Maximum Alert Level . | . . . Low Security (%) 100 | 100 100 . Level 1 . | . . . Level 2 . | . . . Level 3 . | . . . Level 4 . | . . . Level 5 . | . . . High Security . | . . . Max Security . | . . . Peak Influence 166 | 10 166 . Initial . | . . . Average 43 | 1 48 . Influence Increases 333 | 25 308 . Destroy 0b10 Robot/C 200 | . 200 . Destroy 0b10 Robot/NC 30 | 25 5 . Destroy Leader 42 | . 42 . Disable Machine 15 | . 15 . Destroy Structure 1 | . 1 . Lose Combat Pursuer 45 | . 45 . Influence Decreases 333 | 25 202 106 Entered New Map 52 | . . 52 Time Decay 281 | 25 202 54 Squads Dispatched 1 | . 1 . Investigation . | . . . Extermination . | . . . Reinforcement 1 | . 1 . Assault . | . . . Garrison . | . . . Intercept . | . . . Searches Triggered . | . . . Construction Impeded . | . . . Haulers Reinforced . | . . . Active Scanning Responses . | . . . Cargo Convoy Interrupts . | . . . Stealth | -11 -10 -10 --------- Run | Yrd Mat Sub Distress Signals 2 | . 2 . Communications Jammed . | . . . Distress Signals . | . . . Times Spotted 22 | . 15 7 Peak Tracking Total 6 | . 6 3 Tactical Retreats 2 | . 2 . Traps | -11 -10 -10 ------- Run | Yrd Mat Sub Traps Triggered . | . . . Indirectly . | . . . Trap Hack Attempts . | . . . Triggered . | . . . Disarmed . | . . . Reprogrammed . | . . . Reused . | . . . Traps Extracted . | . . . Installed . | . . . Triggered . | . . . Most Traps Carried 1 | . . 1 Machines | -11 -10 -10 ---------- Run | Yrd Mat Sub Machines Disabled 1 | . 1 . Max in Single Turn 1 | . 1 . Machines Repaired . | . . . Machines Dismantled . | . . . Machines Sabotaged . | . . . Overloaded Fab Kills . | . . . Hacking | -11 -10 -10 --------- Run | Yrd Mat Sub Machines Accessed 2 | . 2 . Terminals 2 | . 2 . Fabricators . | . . . Repair Stations . | . . . Recycling Units . | . . . Scanalyzers . | . . . Garrison Access . | . . . Total Hacks 7 | . 7 . Successful 1 | . 1 . Failed 6 | . 6 . Catastrophic 3 | . 3 . Database Lockouts . | . . . Manual 7 | . 7 . Terminals 7 | . 7 . Fabricators . | . . . Repair Stations . | . . . Recycling Units . | . . . Scanalyzers . | . . . Garrison Access . | . . . Terminal Hacks . | . . . Fabricator Hacks . | . . . Repair Station Hacks . | . . . Recycling Unit Hacks . | . . . Scanalyzer . | . . . Garrison Access Hacks . | . . . Unauthorized Hacks 1 | . 1 . Terminals 1 | . 1 . Disrupt 1 | . 1 . Fabricators . | . . . Repair Stations . | . . . Recycling Units . | . . . Scanalyzers . | . . . Garrison Access . | . . . Data Cores Recovered . | . . . Used . | . . . Hacking Detections 2 | . 2 . Full Trace Events . | . . . Feedback Events . | . . . Feedback Blocked . | . . . Robot Schematics Acquired . | . . . Robots Built . | . . . Authchips . | . . . Time . | . . . Total Robot Build Rating . | . . . Part Schematics Acquired . | . . . Parts Built . | . . . Authchips . | . . . Time . | . . . Total Part Build Rating . | . . . Part Studies Acquired . | . . . Parts Repaired . | . . . Time . | . . . Parts Recycled . | . . . Recycled Matter . | . . . Retrieved Matter . | . . . Retrieved Components . | . . . Parts Scanalyzed . | . . . Part Schematics Acquired . | . . . Parts Damaged . | . . . Bothacking | -11 -10 -10 ------------ Run | Yrd Mat Sub Used RIF Installer . | . . . Robots Hacked . | . . . Non-combat . | . . . Combat . | . . . Robot Hacks Applied . | . . . Relay Couplers Released . | . . . Fabnet Peak Effective % . | . . . Robots Rewired . | . . . Allies Hacked . | . . . Hacks Repelled . | . . . Allies | -11 -10 -10 -------- Run | Yrd Mat Sub Total Allies . | . . . Largest Group . | . . . Highest-Rated Group . | . . . Highest-Rated Ally . | . . . Total Orders . | . . . Ally Attacks . | . . . Total Damage . | . . . Kills . | . . . Allies Corrupted . | . . . Allies Melted . | . . . Intel | -11 -10 -10 ------- Run | Yrd Mat Sub Active Infowar (turns) 1707 | 48 1004 655 Terrain 58 | . . 58 Seismic 1649 | 48 1004 597 Robot Analysis Total . | . . . Derelict Logs Recovered . | . . . Drone Launches . | . . . Drone Recoveries . | . . . Exploration | -11 -10 -10 ------------- Run | Yrd Mat Sub Turns Passed 1814 | 123 1004 687 Spaces Moved 725 | 80 410 235 Core 16 | 14 . 2 Treads 527 | . 294 233 Legs . | . . . Wheels 182 | 66 116 . Hover . | . . . Flight . | . . . Fastest Speed 50 | 50 100 50 Average Speed 203 | 94 204 238 Slowest Speed 240 | 150 240 240 Overloaded Moves . | . . . Propulsion Burnouts . | . . . Robots Hopped . | . . . Potential Cave-ins . | . . . Cave-ins Triggered . | . . . Exploration Rate (%) 33 | 5 77 19 Regions Visited 2 Branch Regions 1 Pre-discovered Areas . | . . . Known Exits Taken . | . . . Unknown Exits Taken 2 | 1 1 . Scrap Searched . | . . . Spaces Dug . | . . . Terrain Destroyed . | . . . Melee . | . . . Projectile . | . . . AOE . | . . . Terrain Rammed . | . . . Walls Destroyed . | . . . Machines Disabled . | . . . Actions | -11 -10 -10 --------- Run | Yrd Mat Sub Total 918 | 103 524 291 Wait 85 | 1 74 10 Move 723 | 79 409 235 Hop . | . . . Pick Up 19 | 6 10 3 Fast Attach 8 | 7 . 1 Attach 2 | . . 2 Detach . | . . . Swap 8 | . 4 4 Drop 3 | . . 3 Fire 68 | 10 25 33 Melee . | . . . Ram 1 | . 1 . Kick . | . . . Crush 1 | . 1 . Escape Stasis . | . . . Rewire . | . . . Trap . | . . . Miscellaneous . | . . . Route ------- -11/Scrapyard -10/Materials (discovered 4 exits: [*Mat x2] / [*Min] / [*Sub]) -10/Subcaves History --------- Turn | Location | Event 32 | -11/Scrapyard | Discovered new exit (range 15) 124 | -11/Scrapyard | Entered Materials 325 | -10/Materials | Build established: Mutant 436 | -10/Materials | Discovered new exit (range 6) 568 | -10/Materials | Discovered new exit (range 7) 1002 | -10/Materials | Discovered new exit (range 8) 1106 | -10/Materials | Discovered new exit (range 5) 1128 | -10/Materials | Entered Subcaves 1457 | -10/Subcaves | Shifting Twisted Machinery released Battle Cannon 1490 | -10/Subcaves | Shifting Twisted Machinery released Sub. Beam Cannon 1790 | -10/Subcaves | A Subdweller sparked back to life 1790 | -10/Subcaves | A Subdweller sparked back to life 1790 | -10/Subcaves | A Subdweller sparked back to life 1794 | -10/Subcaves | Core integrity fell below 50% 1813 | -10/Subcaves | Core integrity fell below 20% 1815 | -10/Subcaves | Destroyed by R1-LP1(R) with Subdweller Beam Cannon Last Messages --------------- 01763_ Lgt. Treads destroyed. 01769_ DX-QAN(R) destroyed. 01770_ Lgt. Treads destroyed. 01780_ WJ-55G(R) affixes Scrap Shield Fragment to Scrap Shield. 01783_ Seismic Detector destroyed. 01787_ WJ-55G(R) suffers critical hit (Destroy). 01788_ WJ-55G(R) affixes Scrap Shield Fragment to Scrap Shield. 01790_ WJ-55G(R) destroyed. 01790_ R1-LP1(R) creaks and sparks as it begins to move. 01790_ O4-WH6(R) creaks and sparks as it begins to move. 01790_ 9E-CF9(R) creaks and sparks as it begins to move. 01793_ Dropped Hcp. Storage Unit. 01794_ Assault Rifle destroyed. 01799_ Lgt. Nuclear Core destroyed. 01803_ R1-LP1(R) affixes Scrap Shield Fragment to Scrap Shield. 01806_ Assault Rifle destroyed. 01807_ 9E-CF9(R) affixes Scrap Shield Fragment to Scrap Shield. 01808_ Scrap Shield destroyed. 01810_ Acquired Sub. Machine Gun. 01813_ Lgt. Assault Rifle destroyed. Map ----- +----------------------------------------------------+ | ?????????????????????????????????????????????????? | | ?????????????????????????????????????????????????? | | ?????????????????????????????????????????????????? | | ?????????????????????????????????????????????????? | | ?????????????????????????????????????????????????? | | ?????????????????????????????????????????????????? | | ?????????????????????????????????????????????????? | | ?????????????????????????????????????????????????? | | ?????????????????????????????????????????????????? | | ?????????###?????????????????????????????????????? | | ????????# #???????????????????????????????????? | | ?????### ???????????????????????????????????? | | ????? ?????????????????###???????????????? | | ????? ?????????????????? ##?##???????????? | | ????? ???????#####??????? ## ????????????? | | ????? ????????# ##????? ????????????? | | ????? ?????????? #????? ?????????????? | | ???## ????????????# #?### ??????????????? | | ?### #?????????????# #? #?????? #???????? | | ## #??????????????# ### ###?#? ?????? | | # #????????##??### ## # # # ?????? | | #???????## ### ??????? | | % #?#####?# #?????????? | | ##?# #?# ##!|*= #???????????????? | | ##??# #?# #